Cogmind - Beta 14 @@@ ROGUE MODE // 2025.01.14 @ 19:55:03 Player: Iry-bot Result: Destroyed by D-53 Grenadier with Mini Grenade Launcher Performance ------------- Evolutions (0) 0 Regions Visited (2) 400 Robots Destroyed (19) 95 Value Destroyed (433) 433 Prototype IDs (0) 0 Alien Tech Used (0) 0 Bonus (0) 0 TOTAL SCORE: 928 Bonus ------- None Cogmind --------- Core Integrity 0/250 Matter 300/300 Energy 98/100 System Corruption 0% Temperature Cool (0) Movement Core (50) Location -10/Mines Parts ------- > --- POWER (1) -------- (None) > --- PROPULSION (2) --- (None) > --- UTILITY (2) ------ (None) > --- WEAPON (2) ------- (None) > --- INVENTORY (5) ---- Aluminum Leg Sensor Array Signal Interpreter Seismic Detector Targeting Computer Peak State ------------ > --- POWER ------------ Ion Engine > --- PROPULSION ------- Wheel Compact Wheel > --- UTILITY ---------- Heat Sink Huge Storage Unit > --- WEAPON ----------- Small Laser Assault Rifle > --- INVENTORY -------- Light Ion Engine Light Treads Aluminum Leg Improved Heat Sink Sensor Array Experimental Sensor Array Signal Interpreter Seismic Detector Targeting Computer Utility Shielding Utility Shielding Light Armor Plating Small Laser Particle Gun Beam Cannon Assault Rifle [Rating: 9] Favorites ----------- Power Ion Engine Engine Ion Engine Power Core Light Nuclear Core Propulsion Light Treads Treads Light Treads Wheel Compact Wheel Utility Heat Sink Device Heat Sink Storage Huge Storage Unit Weapon Assault Rifle Energy Gun Small Laser Ballistic Gun Assault Rifle Build | -11 -10 -10 ------- Run | Yrd Mat Min Slots Evolved . | . . . Power . | . . . Propulsion . | . . . Utility . | . . . Weapon . | . . . Parts Attached 20 | 7 10 3 Power 4 | 1 2 1 Engine 3 | 1 1 1 Core 1 | . 1 . Reactor . | . . . Propulsion 6 | 3 1 2 Treads 3 | 2 1 . Leg . | . . . Wheel 3 | 1 . 2 Hover . | . . . Flight . | . . . Utility 6 | 1 5 . Device 2 | . 2 . Storage 4 | 1 3 . Processor . | . . . Hackware . | . . . Protection . | . . . Artifact . | . . . Weapon 4 | 2 2 . Energy Gun 1 | . 1 . Energy Cannon . | . . . Ballistic Gun 3 | 2 1 . Ballistic Cannon . | . . . Launcher . | . . . Special Weapon . | . . . Impact Weapon . | . . . Slashing Weapon . | . . . Piercing Weapon . | . . . Special Melee Weapon . | . . . Unidentified Prototypes . | . . . Parts Lost 8 | . 4 4 Power 2 | . 1 1 Propulsion 3 | . 1 2 Utility . | . . . Weapon 3 | . 2 1 Highest Loss Streak 4 | . 2 4 To Critical Strikes . | . . . Average Slot Usage (%) 86 | . 85 97 Engine 10 | . 9 13 Core 3 | . 4 . Treads 13 | . 15 1 Wheel 2 | . . 24 Device 13 | . 13 14 Storage 14 | . 14 14 Energy Gun 12 | . 12 13 Ballistic Gun 15 | . 15 14 Peak Build Rating 9 | 6 8 9 Average Rating 6 | 5 7 8 On Entrance 4 | . 6 7 Naked Turns 1 | . . 1 Heaviest Build 89 | 14 89 89 Greatest Support 40 | 40 40 26 Greatest Overweight (x) 4 | . 4 4 Average Overweight (x) 1 | . 2 2 Largest Inventory Capacity 25 | 8 25 25 Average Capacity 18 | 7 22 24 Most Carried 16 | 3 12 16 Average Carried 7 | 2 9 14 Final Capacity 25 | 8 25 5 Final Carried 12 | 3 12 5 Class Distribution -------------------- 100% | Mutant Dominant Class ---------------- Mutant | -10/Materials Mutant | -10/Mines Resources | -11 -10 -10 ----------- Run | Yrd Mat Min Matter Collected 658 | 264 346 48 Remotely . | . . . Salvage Created 673 | . 571 102 Parts 46 | . 40 6 Haulers Intercepted 1 | . 1 . Recyclers Shooed 2 | . 1 1 Parts Field Recycled . | . . . Retrieved Matter . | . . . Parts Self-Destructed . | . . . Prevented . | . . . Kills | -11 -10 -10 ------- Run | Yrd Mat Min Combat Hostiles Destroyed 12 | . 10 2 Guns 12 | . 10 2 Classes Destroyed 6 | . 6 . Worker 2 | . 2 . Hauler 1 | . 1 . Recycler 1 | . 1 . Watcher 3 | . 3 . Swarmer 3 | . 3 . Grunt 9 | . 7 2 Best Kill Streak 5 | . 5 2 Combat Bots Only 3 | . 3 2 Max Kills in Single Turn 1 | . 1 1 Gunslinging . | . . . Exploded . | . . . Melee . | . . . Uniques/NPCs Destroyed . | . . . Combat | -11 -10 -10 -------- Run | Yrd Mat Min Hostile Shots Fired 92 | . 78 14 Missed 17 | . 16 1 Damage Taken 1134 | . 736 398 Core 250 | . 125 125 Absorbed by Shields . | . . . Regen/Repaired (Parts) 97 | . 97 . Core Remaining (%) 100 | 100 . . Volleys Fired 68 | . 60 8 Largest 2 | . 2 2 Hottest 60 | . 60 60 Shots Fired 128 | . 112 16 Gun 128 | . 112 16 Cannon . | . . . Launcher . | . . . Special . | . . . Kinetic 99 | . 91 8 Thermal 29 | . 21 8 Explosive . | . . . Electromagnetic . | . . . Robot Hit Streak 8 | . 6 8 Robot Miss Streak 5 | . 5 3 Penetration Max . | . . . Secondary Targets 2 | . 2 . Max Gunslinging Chain 1 | . 1 . Shots Hit Robots 76 | . 66 10 Core Hits 37 | . 32 5 Critical Kills . | . . . Critical Parts Destroyed 1 | . . 1 Critical Strikes 1 | . . 1 Destroy 1 | . . 1 Melee Attacks . | . . . Impact . | . . . Slashing . | . . . Piercing . | . . . Sneak Attacks . | . . . Combat Hostiles . | . . . Follow-up Attacks . | . . . Damage Inflicted 1045 | . 834 211 Guns 950 | . 827 123 Cannons . | . . . Explosions . | . . . Melee . | . . . Ramming 95 | . 7 88 Kinetic 773 | . 697 76 Thermal 177 | . 130 47 Explosive . | . . . Electromagnetic . | . . . Impact . | . . . Slashing . | . . . Piercing . | . . . Highest Corruption . | . . . Average Corruption . | . . . Corruption Purged . | . . . Corruption Blocked . | . . . Overload Shots . | . . . Overflow Damage . | . . . Projectiles . | . . . Explosions . | . . . Melee . | . . . Knockbacks 2 | . . 2 Impact 2 | . . 2 Kinetic . | . . . Secondary . | . . . Self-Inflicted Damage 43 | . . 43 Shots . | . . . Rammed 6 | . 1 5 Targets Rammed 6 | . 1 5 Kicked . | . . . Crushed . | . . . Highest Temperature . | . . . Average Temperature . | . . . Received Heat Transfer 354 | . 318 36 Siege Activations . | . . . Robots Corrupted . | . . . Combat Hostiles . | . . . Parts Fried . | . . . Impact Corruptions . | . . . Robots Melted . | . . . Combat Hostiles . | . . . Parts Melted . | . . . Heat Transferred 400 | . 300 100 Parts Sabotaged . | . . . Parts Stolen . | . . . Parts Stripped . | . . . Power Chain Reactions . | . . . Alert | -11 -10 -10 ------- Run | Yrd Mat Min Peak Influence 242 | . 242 65 Initial . | . . . Average 21 | . 29 44 Maximum Alert Level 1 | . 1 . Low Security (%) 98 | 100 97 100 Level 1 1 | . 2 . Level 2 . | . . . Level 3 . | . . . Level 4 . | . . . Level 5 . | . . . High Security . | . . . Max Security . | . . . Squads Dispatched 2 | . 2 . Investigation 1 | . 1 . Extermination . | . . . Reinforcement 1 | . 1 . Assault . | . . . Garrison . | . . . Intercept . | . . . Searches Triggered . | . . . Construction Impeded . | . . . Haulers Reinforced . | . . . Active Scanning Responses . | . . . Cargo Convoy Interrupts . | . . . Stealth | -11 -10 -10 --------- Run | Yrd Mat Min Distress Signals . | . . . Communications Jammed . | . . . Distress Signals . | . . . Times Spotted 31 | . 27 4 Peak Tracking Total 5 | . 5 2 Tactical Retreats 2 | . 2 . Traps | -11 -10 -10 ------- Run | Yrd Mat Min Traps Triggered 2 | . 2 . Indirectly . | . . . Trap Hack Attempts . | . . . Triggered . | . . . Disarmed . | . . . Reprogrammed . | . . . Reused . | . . . Traps Extracted . | . . . Installed . | . . . Triggered . | . . . Machines | -11 -10 -10 ---------- Run | Yrd Mat Min Machines Disabled . | . . . Max in Single Turn . | . . . Machines Repaired . | . . . Machines Dismantled . | . . . Machines Sabotaged . | . . . Overloaded Fab Kills . | . . . Hacking | -11 -10 -10 --------- Run | Yrd Mat Min Machines Accessed 5 | . 5 . Terminals 4 | . 4 . Fabricators . | . . . Repair Stations 1 | . 1 . Recycling Units . | . . . Scanalyzers . | . . . Garrison Access . | . . . Total Hacks 14 | . 14 . Successful 9 | . 9 . Failed 5 | . 5 . Catastrophic . | . . . Database Lockouts . | . . . Manual 11 | . 11 . Terminals 11 | . 11 . Fabricators . | . . . Repair Stations 3 | . 3 . Recycling Units . | . . . Scanalyzers . | . . . Garrison Access . | . . . Terminal Hacks 3 | . 3 . Robot Analysis 1 | . 1 . Branch Access Points 1 | . 1 . Terminal Index 1 | . 1 . Fabricator Hacks . | . . . Repair Station Hacks 2 | . 2 . Scan Component 1 | . 1 . Repair 1 | . 1 . Recycling Unit Hacks . | . . . Scanalyzer . | . . . Garrison Access Hacks . | . . . Unauthorized Hacks 4 | . 4 . Terminals 4 | . 4 . Track 1 | . 1 . Botnet 3 | . 3 . Fabricators . | . . . Repair Stations . | . . . Recycling Units . | . . . Scanalyzers . | . . . Garrison Access . | . . . Data Cores Recovered . | . . . Used . | . . . Hacking Detections 5 | . 5 . Full Trace Events . | . . . Feedback Events . | . . . Feedback Blocked . | . . . Robot Schematics Acquired . | . . . Robots Built . | . . . Authchips . | . . . Time . | . . . Total Robot Build Rating . | . . . Part Schematics Acquired . | . . . Parts Built . | . . . Authchips . | . . . Time . | . . . Total Part Build Rating . | . . . Parts Repaired 1 | . 1 . Time 26 | . 26 . Parts Recycled . | . . . Recycled Matter . | . . . Retrieved Matter . | . . . Retrieved Components . | . . . Parts Scanalyzed . | . . . Part Schematics Acquired . | . . . Parts Damaged . | . . . Bothacking | -11 -10 -10 ------------ Run | Yrd Mat Min Used RIF Installer . | . . . Robots Hacked . | . . . Non-combat . | . . . Combat . | . . . Robot Hacks Applied . | . . . Relay Couplers Released . | . . . Fabnet Peak Effective % . | . . . Robots Rewired . | . . . Allies Hacked . | . . . Hacks Repelled . | . . . Allies | -11 -10 -10 -------- Run | Yrd Mat Min Total Allies . | . . . Largest Group . | . . . Highest-Rated Group . | . . . Highest-Rated Ally . | . . . Total Orders . | . . . Ally Attacks . | . . . Total Damage . | . . . Kills . | . . . Allies Corrupted . | . . . Allies Melted . | . . . Intel | -11 -10 -10 ------- Run | Yrd Mat Min Robot Analysis Total 1 | . 1 . Derelict Logs Recovered 1 | . . 1 Drone Launches . | . . . Drone Recoveries . | . . . Exploration | -11 -10 -10 ------------- Run | Yrd Mat Min Turns Passed 5160 | 1579 3189 392 Spaces Moved 1569 | 569 754 246 Core 4 | 1 . 3 Treads 1322 | 562 754 6 Legs . | . . . Wheels 243 | 6 . 237 Hover . | . . . Flight . | . . . Fastest Speed 50 | 50 160 50 Average Speed 265 | 159 386 142 Slowest Speed 480 | 160 480 480 Overloaded Moves . | . . . Propulsion Burnouts . | . . . Robots Hopped . | . . . Cave-ins Triggered . | . . . Exploration Rate (%) 69 | 56 97 55 Regions Visited 2 Branch Regions 1 Pre-discovered Areas . | . . . Known Exits Taken 1 | . 1 . Unknown Exits Taken 1 | 1 . . Scrap Searched 2 | . . 2 Spaces Dug . | . . . Terrain Destroyed . | . . . Melee . | . . . Projectile . | . . . AOE . | . . . Terrain Rammed . | . . . Walls Destroyed . | . . . Machines Disabled . | . . . Actions | -11 -10 -10 --------- Run | Yrd Mat Min Total 2424 | 1239 914 271 Wait 737 | 661 74 2 Move 1567 | 568 753 246 Hop . | . . . Pick Up 19 | 2 12 5 Fast Attach 12 | 7 5 . Attach 6 | . 3 3 Detach 3 | 1 1 1 Swap 2 | . 2 . Drop 4 | . 3 1 Fire 68 | . 60 8 Melee . | . . . Ram 5 | . . 5 Kick . | . . . Crush 1 | . 1 . Escape Stasis . | . . . Rewire . | . . . Trap . | . . . Miscellaneous . | . . . Route ------- -11/Scrapyard -10/Materials (discovered 5 exits: [*Mat x3] / *Min x2) -10/Mines (discovered 1 exit: [*Mat]) History --------- Turn | Location | Event 12 | -11/Scrapyard | Discovered new exit (range 15) 1580 | -11/Scrapyard | Entered Materials 1580 | -10/Materials | Discovered new exit (range 7) 1581 | -10/Materials | Build established: Mutant 2027 | -10/Materials | Discovered new exit (range 15) 2233 | -10/Materials | Discovered new exit (range 9) 2377 | -10/Materials | Identified exit to Mines 2739 | -10/Materials | Discovered new exit (range 3) 3581 | -10/Materials | Discovered new exit (range 15) 4739 | -10/Materials | Repaired Lgt. Treads 4769 | -10/Materials | Entered Mines 4880 | -10/Mines | Discovered new exit (range 8) 4900 | -10/Mines | Core integrity fell below 50% 4929 | -10/Mines | Found a damaged Exp. Sensor Array with a note attached 4932 | -10/Mines | Found Prototype Device 4963 | -10/Mines | Learned location of 1 exit from Materials 4988 | -10/Mines | Assembled infested the area 5160 | -10/Mines | Released all parts (3) 5161 | -10/Mines | Destroyed by D-53 Grenadier with Mini Grenade Launcher Last Messages --------------- Data stored: Materials exits (x1). 04964_ Slammed into T-07 Excavator. 04964_ T-07 Excavator knocked back. 04967_ Slammed into T-07 Excavator. 04967_ T-07 Excavator knocked back. 04988_ ALERT: Infestation in the mines, dispatching Demolisher response squad. 04998_ Slammed into K-01 Serf. 05017_ Slammed into T-07 Excavator. 05077_ Dropped Ion Engine. 05155_ Pulverizer disabled. 05157_ Sml. Laser destroyed. 05157_ Pulverizer disabled. 05159_ Wheel destroyed. 05159_ Lgt. Ion Engine destroyed. 05159_ T-07 Excavator destroyed. 05159_ Com. Wheel destroyed. 05160_ Released Heat Sink. 05160_ Released Huge Storage Unit. 05160_ Released Assault Rifle. Map ----- +----------------------------------------------------+ | ????????? ????????????????????????????????????? | | ????????? #?????????????????????????????????? | | ???????? #????????????????????????????????? | | ???????? #????????????????????????????????? | | ???????? #????????????????????????????????? | | ???????? ##???????????????????????????????? | | ???????? ##?????????????????????#########? | | ???????? #????????????????###### #? | | ???????? #????????????????# """ #? | | ###???## #????????????????# #### """ #? | | # ##### #?????????????????# #??# """ #? | | ## #?????????????????# #??# #? | | #??????????????????# #??# """ #? | | #????????############## #??# """ #? | | # ## ##????????# *#??# """ #? | | ####### #?????????# #############??# #? | | ??????# #?????????# #?????????#########? | | ?????## #????????## #??????????????????? | | ??#### ##????????# ##?????????????????? | | ?## ##?????????# d #?????????????????? | | ?# ##?????????#d ! #?????????????????? | | ## ##????????# ]=[! #?????????????????? | | # ##???????# ! ![ #?????????????????? | | # """ #???????# ![! #?????????????????? | | # """ #???????# [ #?????????????????? | | ## """ ##???????# @ #?????????????????? | | ?# ###????????# #?????????????????? | | ?# ##??????????# ####??????????????? | | ?# #???????????# """" ## ??????????????? | | ?# #???????????# """" ## #??????????????? | | ?# ##???????????# """" ## #??????????????? | | ?## ##???????####?# ## #??????????????? | | ??# ######???## ###### ####### #??????????????? | | ### ### ##??# #???# ####### #??????????????? | | ## #?## ????# % #??????????????? | | ### # #?# #????# ###%#####??????????????? | | ?## ### #????# #?# #??????????????????? | | ## ### ######%#?# #??????????????????? | | ### ### #?# #??????????????????? | | =##?## ### #######?# #??????????????????? | | #%##???#### ##???????# #??????????????????? | | # #???????# ##????????# #??????????????????? | | # #???????## ####?????????# #??????????????????? | | # #?####???# ##????????????# #??????????????????? | | # ### ##??# #????????????? #??????????????????? | | # ## ##?# #?????????????###??????????????????? | | # ### #??????????????????????????????????? | | #### #??????????????????????????????????? | | ???# ## #??????????????????????????????????? | | ???# ### #??????????????????????????????????? | +----------------------------------------------------+ Best States ------------- Heat Dissipation 35 Energy Generation 14 Energy Capacity 250 Matter Stores 300 Matter Capacity 500 Sight Range 16 Terrain Scan Density 10 Evasion (%) 40 Recoil Reduction 2 Item Schematics ----------------- None Robot Schematics ------------------ None Fabricated ------------ Nothing Alien Tech Used ----------------- None Achievements -------------- None Challenges ------------ None Game ------ Seed WeaponsStealthStorm Manual? 0 Play Time 00:17:29 Cumulative 30.0 hours Start 2025.01.14 @ 19:28:58 End 2025.01.14 @ 19:55:03 Sessions 1 Manual Loads 0 Difficulty Rogue Special Mode None Game No. 31 Rogue 31 Adventurer 0 Explorer 0 Win Type - Total 0 Types 0/0/0/0/0/0/0/0/0 Lore% 24 Gallery% 24 Achievement% 24 Wizard Run 0 Options --------- Layout 1 ASCII 0 Keyboard 0 Movement Mouse Keybinds 0 Fullscreen 2 Font 24/Smallcaps Map View 50x35 Zoom Use 0% Tactical HUD 1 Map Filters NONE Filters NONE Steam 1 RUN: 16377b8b-77c5-45fc-bc10-99b05c5cae46